fUST/lending_fUST_20250709
["ID","MTS","AMOUNT","RATE_DAILY","PERIOD"]
[370568714,1752065442666,-117.14521051,0.00022,7]
[370568716,1752065442676,-151.0,0.00022,7]
[370568718,1752065442685,-151.0,0.00022,7]
[370568721,1752065442694,-151.0,0.00022,7]
[370568723,1752065442704,-151.0,0.00022,7]
[370568725,1752065442713,-151.0,0.00022,7]
[370568728,1752065442723,-151.0,0.00022,7]
[370568730,1752065442733,-151.0,0.00022,7]
[370568732,1752065442743,-151.599264,0.00022,7]
[370568734,1752065442752,-151.0,0.00022,7]
[370568736,1752065442762,-151.0,0.00022,7]
[370568738,1752065442771,-151.0,0.00022,7]
[370568740,1752065442781,-151.0,0.00022,7]
[370568742,1752065442790,-28.64806663,0.00022,7]
[370568744,1752065442802,-122.35193337,0.00022,7]
[370568747,1752065442811,-151.0,0.00022,7]
[370568749,1752065442821,-151.0,0.00022,7]
[370568751,1752065442830,-151.0,0.00022,7]
[370568753,1752065442839,-151.0,0.00022,7]
[370568754,1752065442848,-151.0,0.00022,7]
[370568757,1752065442858,-151.0,0.00022,7]
[370568759,1752065442867,-151.0,0.00022,7]
[370568761,1752065442877,-151.0,0.00022,7]
[370568763,1752065442886,-151.0,0.00022,7]
[370568766,1752065442896,-151.0,0.00022,7]
[370568769,1752065442905,-151.0,0.00022,7]
[370568771,1752065442915,-185.701247,0.00022,7]
[370568773,1752065442924,-161.04681963,0.00022,7]
[370568776,1752065442947,-671.55227537,0.00022,7]
[370568778,1752065442957,-832.599095,0.00022,7]
[370568780,1752065442966,-832.599095,0.00022,7]
[370568782,1752065442975,-832.599095,0.00022,7]
[370568784,1752065442984,-832.599095,0.00022,7]
[370568786,1752065442994,-832.599095,0.00022,7]
[370568788,1752065443002,-151.0,0.00022,7]
[370568789,1752065443011,-151.456877,0.00022,7]
[370568791,1752065443021,-151.146034,0.00022,7]
[370568793,1752065443030,-281.991641,0.00022,7]
[370568795,1752065443039,-151.0,0.00022,7]
[370568797,1752065443048,-151.0,0.00022,7]
[370568799,1752065443058,-151.198145,0.00022,7]
[370568801,1752065443067,-269.985094,0.00022,7]
[370568803,1752065443076,-269.985094,0.00022,7]
[370568805,1752065443086,-269.985094,0.00022,7]
[370568807,1752065443095,-262.26016857,0.00022,7]
[370568809,1752065443106,-7.72492543,0.00022,7]
[370568811,1752065443116,-269.985094,0.00022,7]
[370568813,1752065443125,-269.985094,0.00022,7]
[370568815,1752065443134,-151.0,0.00022,7]
[370568816,1752065443143,-151.0,0.00022,7]
[370568818,1752065443152,-151.0,0.00022,7]
[370568820,1752065443162,-279.852506,0.00022,7]
[370568822,1752065443172,-151.0,0.00022,7]
[370568824,1752065443181,-151.0,0.00022,7]
[370568826,1752065443190,-298.640799,0.00022,7]
[370568828,1752065443199,-151.0,0.00022,7]
[370568830,1752065443208,-151.0,0.00022,7]
[370568832,1752065443217,-151.0,0.00022,7]
[370568834,1752065443227,-161.090684,0.00022,14]
[370568836,1752065443236,-155.386369,0.00022,14]
[370568837,1752065443245,-209.274747,0.00022,7]
[370568839,1752065443255,-2368.121254,0.00022,14]
[370568841,1752065443264,-2368.121254,0.00022,14]
[370568843,1752065443273,-2368.121254,0.00022,14]
[370568845,1752065443283,-2368.121254,0.00022,14]
[370568847,1752065443292,-1579.42478351,0.00022,14]
[370568855,1752065443340,-604.32,0.00019726,2]
[370568857,1752065443349,-604.32,0.0002,2]
[370568859,1752065443358,-196.75334851,0.00020273,2]
[370568890,1752065443664,-407.56665149,0.00020273,2]
[370568892,1752065443673,-604.32,0.00020547,2]
[370568894,1752065443682,-788.69647049,0.00022,14]
[370568896,1752065443692,-151.0,0.00022,7]
[370568898,1752065443701,-151.0,0.00022,7]
[370568900,1752065443711,-151.0,0.00022,7]
[370568902,1752065443721,-177.784778,0.00022,7]
[370568904,1752065443731,-177.784778,0.00022,7]
[370568905,1752065443740,-249.097854,0.00022,7]
[370568907,1752065443749,-177.784778,0.00022,7]
[370568909,1752065443758,-177.784778,0.00022,7]
[370568911,1752065443768,-177.784778,0.00022,7]
[370568913,1752065443777,-214.763863,0.00022,7]
[370568915,1752065443786,-177.784778,0.00022,7]
[370568917,1752065443795,-214.763863,0.00022,7]
[370568919,1752065443805,-214.763863,0.00022,7]
[370568921,1752065443814,-214.763863,0.00022,7]
[370568923,1752065443823,-214.763863,0.00022,7]
[370568925,1752065443833,-214.763863,0.00022,7]
[370568927,1752065443841,-160.0,0.00022,7]
[370568929,1752065443850,-151.0,0.00022,7]
[370568931,1752065443859,-151.0,0.00022,7]
[370568933,1752065443868,-151.0,0.00022,7]
[370568935,1752065443878,-1572.05,0.00022,7]
[370568937,1752065443887,-151.0,0.00022,7]
[370568939,1752065443896,-151.0,0.00022,7]
[370568941,1752065443905,-151.0,0.00022,7]
[370568943,1752065443914,-324.845624,0.00022,7]
[370568945,1752065443923,-324.845624,0.00022,7]
[370568947,1752065443932,-324.845624,0.00022,7]
[370568948,1752065443942,-200.197756,0.00022,7]
[370568950,1752065443951,-200.197756,0.00022,7]
[370568952,1752065443960,-200.197756,0.00022,7]
[370568954,1752065443971,-324.845624,0.00022,7]
[370568957,1752065443984,-324.845624,0.00022,7]
[370568959,1752065443994,-324.845624,0.00022,7]
[370568961,1752065444003,-200.197756,0.00022,7]
[370568963,1752065444012,-200.197756,0.00022,7]
[370568965,1752065444020,-200.197756,0.00022,7]
[370568966,1752065444030,-151.0,0.00022,7]
[370568968,1752065444039,-151.0,0.00022,7]
[370568970,1752065444048,-151.0,0.00022,7]
[370568972,1752065444057,-151.0,0.00022,7]
[370568974,1752065444066,-151.0,0.00022,7]
[370568976,1752065444075,-151.0,0.00022,7]
[370568978,1752065444084,-151.0,0.00022,7]
[370568980,1752065444093,-202.533037,0.00022,7]
[370568982,1752065444102,-220.45468087,0.00022,2]
[370568984,1752065444111,-151.0,0.00022,7]
[370568986,1752065444121,-151.0,0.00022,7]
[370568988,1752065444131,-155.0,0.00022,2]
[370568990,1752065444140,-169.0,0.00022,2]
[370568992,1752065444149,-427.331,0.00022042,2]
[370568994,1752065444158,-408.797,0.00022042,2]
[370569008,1752065444291,-507.31080215,0.00022082,2]
[370569009,1752065444327,-969.19117275,0.00022082,2]
[370569010,1752065444338,-3430.4780251,0.00022082,2]
[370569011,1752065444347,-1044.62728042,0.00022107,6]
[370569012,1752065444357,-261.783266,0.00022107,7]
[370569013,1752065444367,-151.0,0.00022107,7]
[370569014,1752065444376,-151.0,0.00022107,7]
[370569015,1752065444385,-151.0,0.00022118,7]
[370569016,1752065444395,-355.5885931,0.00022137,2]
[370569017,1752065444404,-306.0,0.00022137,2]
[370569018,1752065444414,-576.0368563,0.00022137,2]
[370569019,1752065444423,-159.547108,0.00022137,2]
[370569020,1752065444433,-159.547108,0.00022137,2]
[370569021,1752065444443,-159.547108,0.00022137,2]
[370569022,1752065444452,-159.4922776,0.00022137,2]
[370569023,1752065444462,-2368.121254,0.00022149,5]
[370569024,1752065444472,-2368.121254,0.00022176,6]
[370569025,1752065444481,-2102.99,0.00022177,30]
[370569026,1752065444492,-460.0,0.00022191,2]
[370569027,1752065444502,-767.18425648,0.00022191,2]
[370569153,1752065446013,-17650.382338,0.00022191,2]
[370569193,1752065446388,-604.32,0.00020821,2]
[370569195,1752065446398,-604.32,0.00021095,2]
[370569197,1752065446407,-604.32,0.00021369,2]
[370569199,1752065446416,-596.561974,0.00021643,2]
[370569300,1752065447727,-7.758026,0.00021643,2]
[370569301,1752065447737,-604.32,0.00021917,2]
[370569302,1752065447747,-460.0,0.00022191,2]
[370569303,1752065447756,-1059.95,0.00022191,2]
[370569304,1752065447765,-460.0,0.00022191,2]
[370569305,1752065447775,-460.0,0.00022191,2]
[370569314,1752065447890,-460.12,0.00022191,2]
[370569316,1752065447900,-504.86,0.00022191,2]
[370569317,1752065447910,-460.0,0.00022191,2]
[370569319,1752065447919,-1079.02,0.00022191,2]
[370569321,1752065447929,-460.0,0.00022191,2]
[370569324,1752065447938,-460.0,0.00022191,2]
[370569326,1752065447947,-460.0,0.00022191,2]
[370569328,1752065447956,-460.0,0.00022191,2]
[370569329,1752065447966,-604.32,0.00022191,2]
[370569331,1752065447976,-2368.121254,0.00022196,4]
[370569333,1752065447985,-500.0,0.00022199,2]
[370569334,1752065447994,-500.0,0.00022199,2]
[370569336,1752065448004,-500.0,0.00022199,2]
[370569338,1752065448014,-500.0,0.00022199,2]
[370569340,1752065448023,-206.31561733,0.00022199,2]
[370569342,1752065448034,-500.0,0.00022199,2]
[370569344,1752065448044,-500.0,0.00022199,2]
[370569346,1752065448053,-500.0,0.00022199,2]
[370569348,1752065448063,-500.0,0.00022199,2]
[370569350,1752065448072,-500.0,0.00022199,2]
[370569352,1752065448082,-500.0,0.00022199,2]
[370569355,1752065448091,-500.0,0.00022199,2]
[370569356,1752065448100,-500.0,0.00022199,2]
[370569358,1752065448109,-500.0,0.00022199,2]
[370569360,1752065448118,-500.0,0.00022199,2]
[370569362,1752065448127,-500.0,0.00022199,2]
[370569363,1752065448137,-500.0,0.00022199,2]
[370569365,1752065448146,-500.0,0.00022199,2]
[370569367,1752065448156,-500.0,0.00022199,2]
[370569369,1752065448165,-500.0,0.00022199,2]
[370569371,1752065448174,-500.0,0.00022199,2]
[370569373,1752065448183,-500.0,0.00022199,2]
[370569375,1752065448192,-461.48654515,0.00022199,2]
[370569377,1752065448201,-500.0,0.00022199,2]
[370569379,1752065448210,-500.0,0.00022199,2]
[370569381,1752065448220,-151.0,0.000222,9]
[370569383,1752065448229,-20782.95520852,0.000222,7]
[370569392,1752065448315,-6923.11425796,0.000222,7]
[370569395,1752065448327,-1172.86574204,0.000222,7]
[370570603,1752065472358,250.0,0.000183,30]
[370570678,1752065473093,250.0,0.000163,30]
[370570729,1752065473652,250.0,0.000143,30]
[370570733,1752065473684,500.0,0.00010959,30]
[370570778,1752065474104,500.0,0.00010959,30]
[370570792,1752065474227,250.0,0.000123,30]
[370570837,1752065474645,250.0,0.000103,30]
[370570842,1752065474681,250.0,0.00010959,30]
[370570845,1752065474707,250.0,0.00010959,30]
[370570900,1752065475235,500.0,0.00010959,30]
[370570912,1752065475340,250.0,8.3e-05,30]
[370570948,1752065475683,250.0,6.3e-05,30]
[370570952,1752065475714,500.0,0.00010959,30]
[370570996,1752065476123,250.0,4.3e-05,30]
[370571011,1752065476264,500.0,0.00010959,30]
[370571125,1752065477341,250.0,2.3e-05,30]
[370571134,1752065477415,500.0,0.00010959,30]
[370571172,1752065477905,250.0,3e-06,30]
[370571177,1752065477935,162.9065901,0.00010959,30]
[370572900,1752065496158,1941.78094915,0.0001678,2]
[370572904,1752065496188,1058.21905085,0.0001678,2]
[370573047,1752065497733,3000.0,0.00017876,2]
[370573615,1752065536575,16343.90800091,0.000222,69]
[370573616,1752065541569,16343.90800088,0.000222,69]
[370573617,1752065546550,16343.90800088,0.0002222,69]
[370573618,1752065551605,16343.90800088,0.00023792,76]
[370573619,1752065565871,500.0,0.00025463,60]
[370573620,1752065566117,500.0,0.00025463,60]
[370573621,1752065566390,500.0,0.00025463,60]
[370573622,1752065566641,500.0,0.00025463,60]
[370573623,1752065566999,500.0,0.00025463,60]
[370573624,1752065567245,500.0,0.00025463,60]
[370573625,1752065567532,465.32397451,0.00025463,60]
[370573630,1752065766717,105597.67240509,0.00027397,120]
[370573631,1752065769561,250.0,0.000183,30]
[370573632,1752065770140,250.0,0.000163,30]
[370573633,1752065770460,250.0,0.000143,30]
[370573634,1752065770835,250.0,0.000123,30]
[370573635,1752065771261,250.0,0.000103,30]
[370573636,1752065771767,87.0934099,8.3e-05,30]
[370573637,1752065771794,162.9065901,8.3e-05,30]
[370573638,1752065772216,250.0,6.3e-05,30]
[370573639,1752065772711,250.0,4.3e-05,30]
[370573640,1752065773334,250.0,2.3e-05,30]
[370573641,1752065773817,250.0,3e-06,30]
[370573642,1752065822185,3680.0,0.00027397,120]
[370573644,1752065833020,165.917814,0.00013699,2]
[370573646,1752065927617,220.45468087,0.00017876,2]
[370573653,1752065998090,3303.28289811,0.000222,69]
[370573654,1752066003008,3303.28289811,0.000222,69]
[370573655,1752066008012,3303.28289811,0.00022213,69]
[370573656,1752066012992,3303.28289811,0.0002378,76]
[370573657,1752066015517,652.88943599,0.00027397,120]
[370573658,1752066016682,621.6444718,0.00027397,120]
[370573659,1752066050578,220.45468087,0.00017876,2]
[370573670,1752066430616,157.878791,0.00018504,52]
[370573671,1752066431152,157.878791,0.00018504,60]
[370573672,1752066431182,157.878791,0.00018504,69]
[370573673,1752066431234,157.878791,0.00018504,77]
[370573674,1752066431441,157.878791,0.00018504,86]
[370573675,1752066431655,157.878791,0.00018504,94]
[370573676,1752066431844,157.878791,0.00018504,103]
[370573677,1752066432199,157.878791,0.00018504,111]
[370573678,1752066432472,157.878791,0.00018504,119]
[370573679,1752066460264,660.65657963,0.000222,69]
[370573680,1752066465240,660.65657962,0.000222,69]
[370573681,1752066470241,660.65657962,0.00022213,69]
[370573682,1752066475257,660.65657962,0.00023781,76]
[370573683,1752066598567,421.19880484,0.00027,120]
[370573986,1752066638358,-157.878791,0.00018504,2]
[370573987,1752066638368,-157.878791,0.00018504,10]
[370573989,1752066638377,-157.878791,0.00018504,18]
[370573991,1752066638387,-157.878791,0.00018504,27]
[370573993,1752066638396,-157.878791,0.00018504,35]
[370573995,1752066638408,-157.878791,0.00018504,44]
[370573997,1752066638417,-3000.0,0.00018972,2]
[370573999,1752066638427,-300.0,0.00019176,2]
[370574001,1752066638437,-300.0,0.00019176,2]
[370574002,1752066638447,-300.0,0.00019176,2]
[370574004,1752066638456,-1200.0,0.00019177,2]
[370574006,1752066638466,-460.0,0.00019178,2]
[370574008,1752066638477,-460.0,0.00019178,2]
[370574010,1752066638486,-460.0,0.00019178,2]
[370574012,1752066638496,-460.0,0.00019178,2]
[370574014,1752066638506,-460.0,0.00019178,2]
[370574016,1752066638516,-460.0,0.00019178,2]
[370574018,1752066638525,-169.383801,0.00019178,2]
[370574020,1752066638535,-3000.0,0.000194,2]
[370574022,1752066638545,-3000.0,0.0001941,2]
[370574024,1752066638555,-460.0,0.00019417,2]
[370574026,1752066638564,-460.0,0.00019417,2]
[370574028,1752066638573,-515.5869689,0.00019418,2]
[370574030,1752066638582,-590.10378647,0.00019418,2]
[370574033,1752066638592,-1616.88202689,0.00019418,2]
[370574035,1752066638604,-3565.20395845,0.00019418,2]
[370574037,1752066638615,-1020.0,0.00019418,2]
[370574440,1752066643527,-10843.71401466,0.00019418,2]
[370574442,1752066643537,-822.33,0.00019418,2]
[370574444,1752066643546,-460.0,0.00019418,2]
[370574446,1752066643555,-460.0,0.00019418,2]
[370574448,1752066643564,-460.0,0.00019418,2]
[370574450,1752066643573,-503.88,0.00019418,2]
[370574453,1752066643583,-712.72,0.00019418,2]
[370574456,1752066643592,-460.0,0.00019418,2]
[370574458,1752066643601,-460.0,0.00019418,2]
[370574460,1752066643610,-460.0,0.00019418,2]
[370574463,1752066643620,-460.0,0.00019418,2]
[370574466,1752066643629,-460.0,0.00019419,2]
[370574468,1752066643640,-460.0,0.00019419,2]
[370574470,1752066643649,-460.0,0.00019419,2]
[370574472,1752066643658,-460.0,0.00019419,2]
[370574474,1752066643667,-460.0,0.00019419,2]
[370574476,1752066643676,-460.0,0.00019419,2]
[370574478,1752066643686,-460.0,0.00019419,2]
[370574480,1752066643695,-460.0,0.00019419,2]
[370574482,1752066643704,-460.0,0.00019419,2]
[370574484,1752066643713,-461.05856364,0.00019419,2]
[370574486,1752066643723,-270.73,0.00019419,2]
[370574488,1752066643732,-460.0,0.00019419,2]
[370574490,1752066643741,-460.0,0.00019419,2]
[370574492,1752066643750,-500.0,0.00019419,2]
[370574494,1752066643759,-460.0,0.00019419,2]
[370574496,1752066643769,-460.0,0.00019419,2]
[370574498,1752066643778,-460.0,0.00019419,2]
[370574500,1752066643787,-460.0,0.00019419,2]
[370574502,1752066643797,-289.79576107,0.00019419,2]
[370574504,1752066643806,-460.0,0.00019419,2]
[370574506,1752066643816,-460.0,0.00019419,2]
[370574508,1752066643825,-460.0,0.00019419,2]
[370574510,1752066643834,-460.0,0.00019419,2]
[370574512,1752066643846,-460.0,0.00019419,2]
[370574514,1752066643855,-460.0,0.00019419,2]
[370574516,1752066643864,-460.0,0.00019419,2]
[370574518,1752066643874,-460.0,0.00019419,2]
[370574520,1752066643883,-460.0,0.00019419,2]
[370574522,1752066643893,-460.0,0.00019419,2]
[370574524,1752066643902,-3000.0,0.0001942,2]
[370574526,1752066643911,-552.78,0.00019429,2]
[370574528,1752066643920,-460.0,0.00019429,2]
[370574530,1752066643930,-460.0,0.00019429,2]
[370574532,1752066643940,-3000.0,0.0001943,2]
[370574534,1752066643949,-3000.0,0.0001944,2]
[370574536,1752066643958,-657.83792171,0.0001945,2]
[370574538,1752066643970,-1814.73052509,0.0001945,2]
[370574541,1752066643982,-527.4315532,0.0001945,2]
[370574542,1752066643991,-460.0,0.00019452,2]
[370574544,1752066644000,-2359.55684333,0.0001946,2]
[370574785,1752066646419,-333.29812571,0.00019459,2]
[370574787,1752066646429,-640.44315667,0.0001946,2]
[370574789,1752066646438,-500.0,0.00019469,2]
[370574790,1752066646448,-3000.0,0.0001947,2]
[370574793,1752066646459,-3000.0,0.0001948,2]
[370574795,1752066646469,-3000.0,0.0001949,2]
[370574797,1752066646480,-3000.0,0.000195,2]
[370574799,1752066646490,-2122.14485886,0.0001951,2]
[370574801,1752066646507,-718.89390562,0.0001951,2]
[370574817,1752066646662,-158.96123552,0.0001951,2]
[370574819,1752066646672,-1051.04807287,0.0001952,2]
[370577769,1752066679421,2900.0,0.00017876,2]
[370579242,1752066921226,165.16414492,0.000222,69]
[370579243,1752066926249,165.1641449,0.000222,69]
[370579244,1752066931223,165.1641449,0.00023294,74]
[370579250,1752067090452,10000.0,0.00027,120]
[370579253,1752067098462,1698.0,0.00027397,120]
[370579255,1752067113922,152.0,0.000183,2]
[370579257,1752067258075,1411.0,0.000273,120]
[370579260,1752067288191,229.450057,0.00013699,2]
[370579261,1752067378181,165.1641449,0.000222,69]
[370579262,1752067406859,2000.0,0.00027,120]
[370579263,1752067428440,-158.333429,0.00018333,2]
[370579264,1752067428467,-163.75489393,0.00018819,2]
[370579265,1752067428495,-1455.82335414,0.00018972,2]
[370579266,1752067428646,-1444.17664586,0.00018972,2]
[370579267,1752067428675,-244.57830989,0.00019078,2]
[370579268,1752067428703,-244.57830986,0.00019135,2]
[370579269,1752067428733,-467.33346878,0.00019178,2]
[370579270,1752067428856,-198.66653122,0.00019178,2]
[370579271,1752067428885,-186.322181,0.00019178,2]
[370579272,1752067428914,-244.57830986,0.00019193,2]
[370579273,1752067428943,-244.57830986,0.0001925,2]
[370579274,1752067428971,-244.57830986,0.00019308,2]
[370579275,1752067429000,-760.07289997,0.00019327,2]
[370579276,1752067429031,-300.0,0.00019405,2]
[370579277,1752067429224,-153.0,0.00019406,2]
[370579278,1752067429374,-1200.0,0.00019406,2]
[370579279,1752067429404,-154.35,0.00019406,3]
[370579280,1752067429434,-463.09,0.00019406,3]
[370579281,1752067429463,-281.0,0.00019407,2]
[370579282,1752067429491,-300.0,0.00019407,2]
[370579283,1752067429654,-395.87014859,0.00019407,2]
[370579284,1752067429683,-460.0,0.00019407,2]
[370579285,1752067429710,-460.4348629,0.00019407,2]
[370579286,1752067429739,-460.0,0.00019407,2]
[370579287,1752067429767,-460.0,0.00019407,2]
[370579288,1752067429796,-67.38997702,0.00019407,2]
[370579289,1752067430012,-392.61002298,0.00019407,2]
[370579290,1752067430041,-460.0,0.00019407,2]
[370579291,1752067430070,-460.0,0.00019407,2]
[370579292,1752067430098,-460.0,0.00019407,2]
[370579293,1752067430126,-460.0,0.00019407,2]
[370579294,1752067430153,-74.77995404,0.00019407,2]
[370579295,1752067430285,-385.22004596,0.00019407,2]
[370579296,1752067430317,-460.0,0.00019407,2]
[370579297,1752067430348,-460.0,0.00019407,2]
[370579298,1752067430377,-608.60990808,0.00019407,3]
[370579299,1752067430492,-1172.34009192,0.00019407,3]
[370579300,1752067430520,-890.47,0.00019407,3]
[370579301,1752067430549,-429.13981616,0.00019407,3]
[370579302,1752067430676,-16.10018384,0.00019407,3]
[370579303,1752067430708,-222.62,0.00019407,3]
[370579304,1752067430740,-667.87,0.00019407,3]
[370579305,1752067430771,-460.0,0.00019408,2]
[370579306,1752067430802,-460.0,0.00019408,2]
[370579307,1752067430837,-460.0,0.00019408,2]
[370579308,1752067430865,-61.35253043,0.00019408,2]
[370579309,1752067431087,-304.11457146,0.00019408,2]
[370579310,1752067431119,-460.0,0.00019408,2]
[370579311,1752067431149,-460.0,0.00019408,2]
[370579312,1752067431180,-460.0,0.00019408,2]
[370579313,1752067431209,-460.0,0.00019408,2]
[370579314,1752067431240,-251.77085708,0.00019408,2]
[370579315,1752067431374,-208.22914292,0.00019408,2]
[370579316,1752067431403,-460.0,0.00019408,2]
[370579317,1752067431433,-460.0,0.00019408,2]
[370579318,1752067431463,-460.0,0.00019408,2]
[370579319,1752067431493,-460.0,0.00019408,2]
[370579320,1752067431618,-992.69,0.00019408,2]
[370579321,1752067431648,-460.0,0.00019408,2]
[370579322,1752067431677,-460.0,0.00019408,2]
[370579323,1752067431708,-460.0,0.00019408,2]
[370579324,1752067431868,-460.0,0.00019408,2]
[370579325,1752067431899,-460.0,0.00019408,2]
[370579326,1752067431928,-500.0,0.00019408,2]
[370579327,1752067431959,-167.10655805,0.00019408,2]
[370579328,1752067431988,-500.0,0.00019408,2]
[370579329,1752067432018,-325.7868839,0.00019408,2]
[370579330,1752067432101,-174.2131161,0.00019408,2]
[370579331,1752067432130,-500.0,0.00019408,2]
[370579332,1752067432159,-500.0,0.00019408,2]
[370579333,1752067432188,-500.0,0.00019408,2]
[370579334,1752067432218,-500.0,0.00019408,2]
[370579335,1752067432253,-151.5737678,0.00019408,2]
[370579336,1752067432440,-348.4262322,0.00019408,2]
[370579337,1752067432469,-500.0,0.00019408,2]
[370579338,1752067432500,-500.0,0.00019408,2]
[370579339,1752067432528,-500.0,0.00019408,2]
[370579340,1752067432558,-500.0,0.00019408,2]
[370579341,1752067432679,-500.0,0.00019408,2]
[370579342,1752067432709,-500.0,0.00019408,2]
[370579343,1752067432738,-500.0,0.00019408,2]
[370579344,1752067432766,-500.0,0.00019408,2]
[370579345,1752067432795,-500.0,0.00019408,2]
[370579346,1752067433044,-500.0,0.00019408,2]
[370579347,1752067433075,-500.0,0.00019408,2]
[370579348,1752067433104,-500.0,0.00019408,2]
[370579349,1752067433133,-500.0,0.00019408,2]
[370579350,1752067433161,-500.0,0.00019408,2]
[370579351,1752067433352,-500.0,0.00019408,2]
[370579352,1752067433380,-500.0,0.00019408,2]
[370579353,1752067433409,-500.0,0.00019408,2]
[370579354,1752067433438,-500.0,0.00019408,2]
[370579355,1752067433467,-460.0,0.00019408,2]
[370579356,1752067433683,-460.0,0.00019407,2]
[370579357,1752067433712,-500.0,0.00019408,2]
[370579358,1752067433741,-500.0,0.00019408,2]
[370579359,1752067433769,-500.0,0.00019408,2]
[370579360,1752067433796,-500.0,0.00019408,2]
[370579361,1752067434034,-500.0,0.00019408,2]
[370579362,1752067434071,-500.0,0.00019408,2]
[370579363,1752067434110,-500.0,0.00019408,2]
[370579364,1752067434147,-500.0,0.00019408,2]
[370579365,1752067434186,-460.0,0.00019408,2]
[370579366,1752067434283,-500.0,0.00019408,2]
[370579367,1752067434322,-500.0,0.00019408,2]
[370579368,1752067434361,-500.0,0.00019408,2]
[370579369,1752067434393,-500.0,0.00019408,2]
[370579370,1752067434428,-500.0,0.00019408,2]
[370579371,1752067434641,-460.0,0.00019408,2]
[370579372,1752067434675,-500.0,0.00019408,2]
[370579373,1752067434709,-287.04789387,0.00019408,2]
[370579374,1752067434742,-500.0,0.00019408,2]
[370579375,1752067434776,-500.0,0.00019408,2]
[370579376,1752067434809,-5.90421226,0.00019408,2]
[370579377,1752067435049,-494.09578774,0.00019408,2]
[370579378,1752067435084,-500.0,0.00019408,2]
[370579379,1752067438369,-2520.53844619,0.00019408,2]
[370579380,1752067438383,-5000.0,0.00019408,2]
[370579381,1752067438411,-5000.0,0.00019408,2]
[370579382,1752067438448,-36.01844619,0.00019408,2]
[370579383,1752067438590,-4927.96310762,0.00019408,2]
[370579384,1752067438601,-36.01844619,0.00019408,2]
[370579385,1752067438633,-863.46155381,0.00019408,2]
[370579386,1752067438662,-460.0,0.00019408,2]
[370579387,1752067438695,-460.0,0.00019408,2]
[370579388,1752067438766,-1727.71,0.00019408,2]
[370579389,1752067438794,-460.0,0.00019408,2]
[370579390,1752067438823,-164.58,0.00019408,2]
[370579391,1752067438884,-295.42,0.00019408,2]
[370579392,1752067438894,-460.0,0.00019408,2]
[370579393,1752067438903,-108.82844619,0.00019408,2]
[370579394,1752067438939,-351.17155381,0.00019408,2]
[370579395,1752067438967,-460.0,0.00019408,2]
[370579396,1752067438997,-460.0,0.00019408,2]
[370579397,1752067439026,-460.0,0.00019408,2]
[370579398,1752067439055,-460.0,0.00019408,2]
[370579399,1752067439086,-157.65689238,0.00019408,2]
[370579400,1752067439145,-302.34310762,0.00019408,2]